bitfinex-derivatives/quotes_ETHF0:USTF0_20251028
["timestamp","ask_amount","ask_price","bid_price","bid_amount"]
[1761645310582,0.7436,4125.9,4125.8,1.1798]
[1761645314087,0.3177,4125.9,4125.8,1.1798]
[1761645314486,0.53,4125.9,4125.8,1.1798]
[1761645314784,0.53,4125.9,4125.8,1.2526]
[1761645315084,0.53,4125.9,4125.8,1.1798]
[1761645315286,40.8,4126.4,4126.3,0.65066]
[1761645315478,40.8,4126.4,4126.3,0.2144]
[1761645315883,41.1177,4126.4,4126.3,0.2144]
[1761645316183,41.1177,4126.4,4126.3,0.65066]
[1761645317186,41.1177,4126.4,4126.3,0.43626]
[1761645317580,0.53,4126.0,4125.9,0.7435]
[1761645317781,0.53,4126.0,4125.9,1.17981]
[1761645318888,0.8789,4126.0,4125.9,1.17981]
[1761645319587,0.8789,4126.0,4125.9,0.86631]
[1761645319989,0.8789,4126.0,4125.9,1.17981]
[1761645321792,0.8789,4126.0,4125.9,0.86631]
[1761645322190,0.8789,4126.0,4125.9,0.65071]
[1761645322486,0.6653,4126.0,4125.9,0.65071]
[1761645322692,0.3177,4126.0,4125.9,1.17981]
[1761645322991,0.53,4126.0,4125.9,1.17981]
[1761645323797,0.8789,4126.0,4125.9,1.17981]
[1761645324185,0.8789,4126.0,4125.9,0.65071]
[1761645324587,0.8789,4126.0,4125.9,1.17981]
[1761645325294,0.7436,4126.0,4125.9,1.17981]
[1761645325994,0.9517,4126.0,4125.9,0.43631]
[1761645326199,0.8789,4126.0,4125.9,0.43631]
[1761645326392,0.8789,4126.0,4125.9,1.17981]
[1761645334303,0.136,4126.5,4126.4,0.97685]
[1761645334510,0.92379201,4126.5,4126.4,1.19215]
[1761645334696,1.15109201,4126.5,4126.4,1.19215]
[1761645335002,1.48339201,4126.5,4126.4,1.19215]
[1761645335901,1.48339201,4126.5,4126.4,0.87245]
[1761645336105,1.48339201,4126.5,4126.4,0.65715]
[1761645336400,1.48339201,4126.5,4126.4,0.43625]
[1761645336603,0.9203,4126.0,4125.9,0.87251]
[1761645336910,0.9203,4126.0,4125.9,1.19221]
[1761645337801,0.3323,4125.7,4125.2,1.96433583]
[1761645338005,0.7902,4125.3,4125.2,0.65728]
[1761645338601,0.7902,4125.3,4125.2,0.97698]
[1761645339099,0.7902,4125.3,4125.2,1.19228]
[1761645340401,0.5629,4125.3,4125.2,1.19228]
[1761645340708,0.5629,4125.3,4125.2,1.26508]
[1761645340902,0.3323,4125.3,4125.2,1.26508]
[1761645341601,0.1301,4126.0,4125.2,1.26508]
[1761645341602,0.3323,4125.9,4125.8,0.4362]
[1761645341807,0.7902,4125.9,4125.8,0.87252]
[1761645342700,0.7902,4125.9,4125.8,1.19222]
[1761645344408,0.7902,4125.9,4125.8,0.65722]
[1761645345010,0.7902,4125.9,4125.8,1.19222]
[1761645345600,0.2306,4125.3,4125.2,0.5406]
[1761645345807,0.7902,4125.3,4125.2,1.19228]
[1761645346107,0.5629,4125.3,4125.2,1.19228]
[1761645347807,0.7902,4125.3,4125.2,1.19228]
[1761645349204,0.7902,4125.3,4125.2,0.87258]
[1761645349607,0.7902,4125.3,4125.2,0.65728]
[1761645349809,0.7902,4125.3,4125.2,1.19228]
[1761645350810,41.5902,4125.3,4125.2,1.19228]
[1761645351605,41.5902,4125.3,4125.2,0.43638]
[1761645351910,41.5902,4125.3,4124.5,0.1249]
[1761645351911,0.9203,4124.5,4124.4,0.43647]
[1761645352102,0.9203,4124.5,4124.4,1.19237]
[1761645352504,0.7902,4124.5,4124.4,1.19237]
[1761645352808,0.3323,4124.5,4124.4,1.19237]
[1761645353503,0.5629,4124.5,4124.4,1.19237]
[1761645353912,0.9203,4124.5,4124.4,1.19237]
[1761645354109,0.9203,4124.5,4124.4,0.65737]
[1761645355012,0.9203,4124.5,4124.4,1.19237]
[1761645355406,0.7902,4124.5,4124.4,1.19237]
[1761645358017,0.9203,4124.5,4124.4,1.19237]
[1761645358217,0.9203,4124.5,4124.4,0.43647]
[1761645358910,0.9203,4124.5,4124.1,0.3197]
[1761645358911,0.7902,4124.4,4124.3,0.43901492]
[1761645360407,0.7902,4124.4,4124.3,1.19491492]
[1761645360712,0.5629,4124.4,4124.3,1.19491492]
[1761645361318,0.7902,4124.4,4124.3,1.19491492]
[1761645364518,0.7668,4124.8,4124.7,1.21393]
[1761645364816,0.7668,4124.8,4124.7,0.88823]
[1761645365116,0.32,4124.7,4124.5,0.43645]
[1761645365315,0.7668,4124.6,4124.5,0.43645]
[1761645366020,0.7668,4124.6,4124.3,0.00253492]
[1761645366021,0.7668,4124.4,4124.3,0.43901492]
[1761645366517,0.8396,4124.4,4124.3,0.43901492]
[1761645367717,0.7668,4124.4,4124.3,1.19521492]
[1761645367917,0.32,4124.4,4124.3,1.19521492]
[1761645368211,0.7778,4124.8,4124.7,0.97803]
[1761645369510,0.5507,4124.8,4124.7,1.19263]
[1761645369718,0.7778,4124.8,4124.7,1.19263]
[1761645369911,0.7778,4124.8,4124.7,0.87653]
[1761645370219,0.7778,4124.8,4124.7,0.66193]
[1761645370423,0.7778,4124.8,4124.7,1.19263]
[1761645375214,40.8,4125.3,4125.2,1.19258]
[1761645375421,0.7778,4125.6,4125.5,1.19255]
[1761645375813,41.5778,4125.6,4125.5,1.19255]
[1761645376421,0.7778,4125.6,4125.5,0.66185]
[1761645376826,41.5778,4125.6,4125.5,0.66185]
[1761645377322,41.5778,4125.6,4125.0,4.0099]
[1761645377323,41.6506,4125.6,4125.4,0.43636]
[1761645377619,0.9094,4125.5,4125.4,0.43636]
[1761645378013,0.9094,4125.5,4125.4,0.66186]
[1761645378209,0.9094,4125.5,4125.4,1.19256]
[1761645379021,0.9094,4125.5,4125.4,0.87646]
[1761645379615,0.9094,4125.5,4125.4,1.19256]
[1761645382318,0.7778,4125.3,4125.2,0.43638]
[1761645382622,0.324,4125.2,4125.0,3.898]
[1761645382922,0.7778,4125.2,4125.1,0.43639]
[1761645385127,0.8506,4125.2,4125.1,0.43639]
[1761645385326,0.324,4125.2,4125.1,1.19259]
[1761645385515,0.7778,4125.2,4125.1,1.19259]
[1761645389728,0.7778,4125.2,4124.6,3.898]
[1761645389729,0.5507,4125.5,4125.4,1.19256]
[1761645389927,0.324,4125.5,4125.4,1.19256]
[1761645390623,0.324,4126.3,4125.9,0.3161]
[1761645390826,0.7778,4126.2,4126.1,1.19248]
[1761645392116,0.5507,4126.3,4126.2,1.19247]
[1761645392318,0.324,4126.3,4126.2,1.19247]
[1761645392526,0.5507,4126.5,4126.4,0.7562]
[1761645392823,40.8,4126.6,4126.5,0.3161]
[1761645393028,41.124,4126.6,4126.5,0.7562]
[1761645393929,41.124,4126.6,4126.5,0.4401]
[1761645394531,41.1968,4126.6,4126.5,0.2255]
[1761645395126,0.1375,4126.0,4125.8,0.2296]
[1761645395333,0.3282,4125.6,4125.5,1.21795]
[1761645395725,0.5901,4126.0,4125.9,1.21791]
[1761645396329,0.9183,4126.0,4125.9,1.21791]
[1761645397522,0.9183,4126.0,4125.9,0.89221]
[1761645397827,0.7808,4125.8,4125.7,0.43632]
[1761645398028,0.7808,4125.8,4125.7,0.66592]
[1761645398427,0.7808,4125.8,4125.7,0.89222]
[1761645398626,0.7808,4125.8,4125.7,1.21792]
[1761645400528,0.3282,4125.8,4125.7,1.21792]
[1761645400932,0.7808,4126.4,4126.0,0.43629]
[1761645401234,0.5542,4126.1,4126.0,1.21789]
[1761645401630,0.7808,4126.1,4126.0,1.21789]
[1761645402431,0.3282,4126.5,4126.4,0.7816]
[1761645402736,0.9183,4126.5,4126.4,0.89215]
[1761645403939,0.9183,4126.5,4126.4,1.21785]
[1761645405138,41.7183,4126.5,4126.4,1.21785]
[1761645406632,41.7183,4126.5,4126.4,0.66585]
[1761645406842,41.7183,4126.5,4126.4,0.2296]
[1761645407438,0.226,4126.2,4126.1,0.5553]
[1761645407643,0.7808,4126.2,4126.1,0.5553]
[1761645407841,0.7808,4126.2,4126.1,0.7816]
[1761645408542,0.7808,4126.2,4126.1,1.21788]
[1761645410146,0.7808,4126.2,4126.1,0.89218]
[1761645412742,0.7808,4126.2,4126.1,0.43628]
[1761645412942,0.1375,4126.0,4125.7,4.1276]
[1761645413146,0.1375,4126.0,4125.9,0.4363]
[1761645413147,0.9183,4126.0,4125.9,0.4363]
[1761645413454,0.9183,4126.0,4125.9,0.6659]
[1761645414747,0.3282,4126.0,4125.9,1.2179]
[1761645415150,0.5542,4126.0,4125.9,1.2179]
[1761645415852,0.7808,4126.0,4125.9,1.2179]
[1761645417644,0.9183,4126.0,4125.9,1.2179]
[1761645420347,0.1375,4125.5,4125.4,0.43636]
[1761645420555,0.9183,4125.5,4125.4,0.66596]
[1761645420954,0.9911,4125.5,4125.4,0.66596]
[1761645421147,0.9183,4125.5,4125.4,0.89226]
[1761645421353,0.9183,4125.5,4125.4,1.21796]
[1761645423555,0.9183,4125.5,4125.4,0.89226]
[1761645424263,0.9183,4125.5,4125.4,0.43636]
[1761645424756,0.9911,4125.5,4125.4,0.65376]
[1761645425059,41.7911,4125.5,4125.4,0.43636]
[1761645425260,41.7183,4125.5,4125.4,0.43636]
[1761645425461,41.7911,4125.5,4125.4,0.43636]
[1761645425864,41.7183,4125.5,4125.4,0.43636]
[1761645427367,0.7828,4125.4,4125.3,0.43636]
[1761645429967,0.8556,4125.4,4125.3,0.43636]
[1761645433368,0.7828,4125.4,4125.3,0.43636]
[1761645434967,0.7828,4125.4,4125.3,0.64716]
[1761645435967,0.7828,4125.4,4125.3,0.43636]
[1761645436168,0.7828,4125.4,4125.3,0.64716]
[1761645436767,0.7828,4125.4,4125.3,0.2108]
[1761645436958,0.7828,4125.4,4125.3,0.64717]
[1761645437163,0.7828,4125.4,4125.3,0.43637]
[1761645439868,0.7828,4125.4,4125.3,0.64717]
[1761645444169,0.7828,4125.4,4125.3,0.43637]
[1761645444965,0.7828,4125.4,4125.3,0.64717]
[1761645447268,0.7828,4125.4,4125.3,0.43637]
[1761645449165,1.35158643,4125.4,4125.3,0.43637]
[1761645451472,0.3224,4125.3,4125.2,0.43638]
[1761645451670,0.8556,4125.3,4125.2,0.43638]
[1761645451871,0.7828,4125.1,4125.0,0.64719]
[1761645452173,0.7828,4125.1,4125.0,0.43639]
[1761645452373,0.1374,4125.0,4124.9,0.43641]
[1761645452579,0.9202,4125.0,4124.9,0.43641]
[1761645453077,0.9202,4125.0,4124.5,1.09113]
[1761645453078,0.7828,4124.9,4124.8,0.43641]
[1761645455070,0.8556,4124.9,4124.8,0.43641]
[1761645455268,0.7828,4124.9,4124.8,0.43641]
[1761645455671,0.3304,4124.8,4124.5,0.538]
[1761645455874,0.7631,4124.6,4124.5,0.97445]
[1761645457074,0.7631,4124.6,4124.5,0.64725]
[1761645457780,0.7631,4124.6,4124.5,0.2108]
[1761645457981,0.7631,4124.4,4124.3,0.22923492]
[1761645458179,0.7631,4124.4,4124.3,0.66570492]
[1761645458576,0.7631,4124.4,4124.3,0.22923492]
[1761645458882,0.7631,4124.4,4124.3,0.66570492]
[1761645459477,0.7631,4124.4,4124.3,1.22860492]
[1761645460482,0.5397,4124.9,4124.8,0.2206]
[1761645460675,1.33154566,4124.9,4124.8,0.7896]
[1761645460875,1.33154566,4124.9,4124.8,1.22602]
[1761645461382,1.33154566,4124.9,4124.8,0.88372]
[1761645465288,1.33154566,4124.9,4124.8,1.22602]
[1761645466182,0.7631,4124.9,4124.8,1.22602]
[1761645466983,1.33131397,4124.9,4124.8,1.22602]
[1761645467182,0.7631,4124.9,4124.8,1.22602]
[1761645468686,0.7631,4124.9,4124.8,0.66312]
[1761645469292,1.33470368,4124.9,4124.8,0.66312]
[1761645470284,0.2234,4125.2,4124.5,0.1255]
[1761645470486,0.5538,4125.2,4125.1,0.4473]
[1761645470989,0.5538,4125.2,4125.1,0.7896]
[1761645471194,0.7631,4125.2,4125.1,0.7896]
[1761645471594,0.7631,4125.2,4125.1,1.22599]
[1761645476399,0.3304,4125.2,4125.1,1.22599]
[1761645477195,0.5538,4125.2,4125.1,1.22599]
[1761645481197,0.5538,4125.4,4125.3,0.7896]
[1761645481394,1.12573182,4125.4,4125.3,0.7896]
[1761645481797,1.33503182,4125.4,4125.3,0.7896]
[1761645483397,1.33503182,4125.4,4125.3,0.4473]
[1761645483696,1.33503182,4125.4,4125.3,0.2267]
[1761645484093,0.3304,4125.3,4125.0,0.569]
[1761645484286,0.7631,4125.1,4125.0,0.2267]
[1761645484692,1.33508327,4125.1,4125.0,0.2267]
[1761645485492,0.774,4124.6,4124.5,0.2194]
[1761645485696,0.9015,4124.5,4124.4,1.20336]
[1761645485894,0.774,4124.5,4124.4,1.20336]
[1761645486087,0.3302,4124.5,4124.4,1.20336]
[1761645488303,0.5477,4124.5,4124.4,1.20336]
[1761645488505,0.7641,4124.5,4124.4,1.20336]
[1761645489004,0.5477,4124.5,4124.4,1.20336]
[1761645490402,0.3302,4124.5,4124.4,1.20336]
[1761645490600,40.8,4124.9,4124.8,1.22522]
[1761645491305,41.1379,4124.9,4124.8,1.22522]
[1761645491802,41.1379,4124.9,4124.8,0.7888]
[1761645492103,41.71002181,4124.9,4124.8,0.7888]
[1761645492800,41.71002181,4124.9,4124.8,0.4481]
[1761645493305,41.71002181,4124.9,4124.8,0.88452]
[1761645493503,41.71002181,4124.9,4124.8,1.22522]
[1761645494098,1.12752181,4124.9,4124.8,1.22522]
[1761645494298,0.5554,4124.9,4124.8,1.22522]
[1761645495300,1.12759446,4124.9,4124.8,1.22522]
[1761645495505,0.5554,4124.9,4124.8,1.22522]
[1761645498802,0.3379,4124.9,4124.8,1.22522]
[1761645499004,0.7718,4125.3,4125.2,0.7888]
[1761645499198,1.34404294,4125.3,4125.2,0.7888]
[1761645499610,1.34404294,4125.3,4125.2,0.4481]
[1761645500518,1.34404294,4125.3,4125.2,0.7888]
[1761645500910,1.34404294,4125.3,4125.2,0.4481]
[1761645501114,1.34404294,4125.3,4125.2,0.88448]
[1761645501314,1.34404294,4125.3,4125.2,1.22518]
[1761645502926,0.7718,4124.4,4124.3,0.22233492]
[1761645503224,0.7718,4124.4,4124.3,0.65880492]
[1761645503521,0.7718,4124.4,4124.3,0.00253492]
[1761645504017,0.8446,4124.4,4124.3,0.00253492]
[1761645504421,0.7718,4124.4,4124.3,0.00253492]
[1761645504615,0.8446,4124.4,4124.3,0.00253492]
[1761645505213,1.34521175,4124.4,4124.3,0.00253492]
[1761645505422,1.41801175,4124.4,4124.3,0.00253492]
[1761645505922,1.34521175,4124.4,4124.3,0.00253492]
[1761645506121,42.14521175,4124.4,4124.3,0.00253492]
[1761645506323,42.14521175,4124.4,4124.3,0.43900492]
[1761645506519,42.21801175,4124.4,4124.3,0.43900492]
[1761645507123,41.5718,4124.4,4124.3,0.43900492]
[1761645507325,41.6446,4124.4,4124.3,0.43900492]
[1761645507826,41.5718,4124.4,4124.3,0.43900492]
[1761645508127,40.8,4124.4,4124.3,1.22780492]
[1761645508426,41.1379,4124.4,4124.3,1.30060492]
[1761645508928,0.3379,4124.4,4124.3,1.30060492]
[1761645509233,0.5695,4125.0,4124.9,1.22521]
[1761645509832,0.9074,4125.0,4124.9,1.22521]
[1761645512715,40.8,4125.4,4125.3,0.43637]
[1761645512922,41.37299773,4125.4,4125.3,0.43637]
[1761645513427,41.71089773,4125.4,4125.3,1.22517]
[1761645513629,41.1379,4125.4,4125.3,1.22517]
[1761645519233,41.1379,4125.4,4125.3,0.43637]
[1761645519619,41.1379,4125.4,4124.7,1.42807]
[1761645519933,0.7619,4124.8,4124.7,1.20543]
[1761645520125,0.5366,4124.8,4124.7,1.20543]
[1761645522230,0.449,4125.1,4125.0,0.6544]
[1761645522426,0.449,4125.1,4125.0,0.4364]
[1761645522730,0.7619,4125.1,4125.0,0.6544]
[1761645522927,0.7619,4125.1,4125.0,1.2054]
[1761645524532,0.5366,4125.1,4125.0,1.2054]
[1761645524729,0.3129,4125.1,4125.0,1.2054]
[1761645526328,40.8,4125.4,4125.3,1.20537]
[1761645526527,0.5865,4126.0,4125.8,0.43631]
[1761645526723,0.5865,4126.0,4125.9,0.4363]
[1761645527029,41.6994,4126.0,4125.9,0.4363]
[1761645533340,41.6994,4126.0,4125.9,0.6543]
[1761645533837,41.6994,4126.0,4125.9,0.9913]
[1761645534431,41.6994,4126.0,4125.9,0.4363]
[1761645537241,42.27160161,4126.0,4125.9,0.4363]
[1761645538435,0.2253,4125.0,4124.8,2.08043583]
[1761645538636,41.58250161,4126.0,4125.4,0.43636]
[1761645538637,0.1378,4125.5,4125.4,0.43636]
[1761645538836,0.5868,4125.5,4125.4,1.20536]
[1761645539243,0.8997,4125.5,4125.4,1.20536]
[1761645540045,0.7619,4125.5,4125.4,1.20536]
[1761645540944,0.8997,4125.5,4125.4,1.20536]
[1761645542038,0.8997,4125.5,4125.4,0.43636]
[1761645542235,0.5868,4125.5,4124.8,2.17543583]
[1761645542446,0.8997,4125.0,4124.9,0.65441]
[1761645544536,0.8997,4125.0,4124.9,0.97911]
[1761645544742,0.8997,4125.0,4124.9,1.20091]
[1761645548050,0.3129,4125.0,4124.9,1.20091]
[1761645548442,0.5213,4125.0,4124.9,1.20091]
[1761645553058,0.7523,4125.0,4124.9,1.20091]
[1761645553660,0.885,4125.0,4124.9,1.20091]
[1761645554161,0.885,4125.0,4124.9,0.87621]
[1761645554660,0.885,4125.0,4124.9,0.65441]
[1761645555460,0.885,4125.0,4124.9,0.43641]
[1761645557664,0.885,4125.0,4124.9,0.65291]
[1761645558264,0.885,4125.0,4124.9,0.98471]
[1761645558459,0.7523,4125.0,4124.9,1.20201]
[1761645558659,0.5213,4125.0,4124.9,1.20201]
[1761645559164,0.7523,4125.0,4124.9,1.20201]
[1761645564868,0.885,4125.0,4124.9,1.20201]
[1761645565272,0.885,4125.0,4124.9,0.65291]
[1761645566768,0.885,4125.0,4124.9,0.98471]
[1761645567469,0.885,4125.0,4124.9,0.65291]
[1761645571465,0.885,4125.0,4124.9,0.43641]
[1761645575074,0.9578,4125.0,4124.9,0.43641]
[1761645575478,0.885,4125.0,4124.9,0.98101]
[1761645575773,0.885,4125.0,4124.9,0.65291]
[1761645583981,1.4565637,4125.0,4124.9,0.65291]
[1761645585172,1.4565637,4125.0,4124.9,0.2165]
[1761645585370,1.1436637,4125.0,4124.4,0.5553]
[1761645585581,0.9181,4124.5,4124.4,0.65006]
[1761645585984,0.7797,4124.4,4124.3,0.43900492]
[1761645586178,1.35134281,4124.4,4124.3,0.43900492]
[1761645586688,1.35134281,4124.4,4124.3,0.00253492]
[1761645586883,1.42414281,4124.4,4124.3,0.00253492]
[1761645587077,1.35134281,4124.4,4124.3,0.43900492]
[1761645591487,0.7797,4124.4,4124.3,0.43900492]
[1761645592290,0.7797,4124.4,4124.3,0.65260492]
[1761645593782,0.7797,4124.4,4124.3,0.98070492]
[1761645594592,0.7797,4124.4,4124.3,0.65260492]
[1761645595683,0.7797,4124.4,4124.3,0.43900492]
[1761645596087,0.7797,4124.4,4124.3,0.98070492]
[1761645596284,0.7797,4124.4,4124.3,1.20790492]
[1761645601292,0.86993596,4126.3,4125.9,0.8771]
[1761645601490,1.30512299,4126.5,4126.4,0.7689]
[1761645601491,0.2392,4126.5,4126.4,0.7689]
[1761645601688,41.0392,4126.5,4126.4,0.3281]
[1761645601892,41.60886169,4126.5,4126.0,0.3281]
[1761645602191,0.2392,4125.8,4125.7,0.3281]
[1761645602393,0.2392,4125.8,4125.7,0.5417]
[1761645602791,0.312,4125.8,4125.7,0.7689]
[1761645603491,0.1196,4125.8,4125.7,0.7689]
[1761645603699,0.55589,4126.1,4126.0,0.9023]
[1761645604302,0.2392,4126.1,4126.0,0.9023]
[1761645604495,0.55617,4126.3,4126.2,0.3353]
[1761645604798,0.55617,4126.3,4126.2,0.7682]
[1761645604994,0.1199,4126.3,4126.2,0.7682]
[1761645605195,40.8,4126.5,4126.4,0.7682]
[1761645610097,40.9202,4126.5,4126.4,0.5532]
[1761645610900,40.993,4126.5,4126.0,0.1334]
[1761645611201,0.3606,4126.1,4126.0,0.56969]
[1761645611604,0.2404,4126.1,4126.0,1.10379]
[1761645612408,0.2404,4126.1,4126.0,1.33229]
[1761645616501,40.8,4126.5,4126.0,1.33229]
[1761645616804,0.2404,4126.4,4126.3,0.4432]
[1761645616998,0.3606,4126.4,4126.3,0.2147]
[1761645617194,0.3606,4126.4,4126.3,0.5341]
[1761645617905,0.3606,4126.4,4126.3,0.97036]
[1761645618105,0.2404,4126.4,4126.3,1.19886]
[1761645619003,0.3606,4126.4,4126.3,0.97036]
[1761645619305,0.1202,4125.7,4124.2,2.17658154]
[1761645619503,0.1202,4125.0,4124.7,0.43643]
[1761645619708,0.2404,4124.6,4124.5,0.3481]
[1761645620005,41.1606,4124.6,4124.5,0.4528]
[1761645620208,41.2334,4124.6,4124.5,0.4528]
[1761645621004,41.2334,4124.6,4124.5,0.3194]
[1761645623606,41.0404,4124.6,4124.5,0.6661]
[1761645625910,41.1606,4124.6,4124.5,0.6661]
[1761645627314,41.2334,4124.6,4124.5,0.4514]
[1761645628003,41.2334,4124.6,4124.5,0.3194]
[1761645628914,0.3606,4124.5,4124.4,0.3194]
[1761645629213,0.4334,4124.5,4124.4,0.3194]
[1761645630711,0.3606,4124.5,4124.4,0.3194]
[1761645630913,0.3606,4124.5,4124.4,0.5341]
[1761645631716,0.2404,4124.5,4124.4,0.97057]
[1761645633016,0.2404,4124.5,4124.4,0.5341]
[1761645633614,0.2404,4124.5,4124.4,0.97057]
[1761645633916,40.8,4124.6,4124.5,0.8946]
[1761645634119,40.8,4124.6,4124.5,1.33105]
[1761645638122,0.1197,4125.1,4125.0,0.1295]
[1761645638318,0.1197,4125.1,4125.0,1.3604]
[1761645638616,0.1197,4125.1,4125.0,0.924]
[1761645638821,0.2394,4125.1,4125.0,0.924]
[1761645639211,0.2394,4124.8,4124.7,0.3373]
[1761645639421,0.3591,4124.8,4124.7,0.77373]
[1761645639721,0.3591,4124.8,4124.7,1.00383]
[1761645639918,0.2394,4124.8,4124.7,0.5674]
[1761645640123,0.3591,4124.8,4124.7,0.5674]
[1761645641525,0.4319,4124.8,4124.7,0.3373]
[1761645641724,0.3591,4124.8,4124.7,0.3373]
[1761645642523,41.1591,4124.8,4124.7,0.3373]
[1761645643924,41.2319,4124.8,4124.7,0.3373]
[1761645644118,41.1591,4124.8,4124.7,0.3373]
[1761645644623,0.3591,4124.6,4124.5,0.4693]
[1761645645027,0.4319,4124.6,4124.5,0.3373]
[1761645646520,0.4319,4124.6,4124.3,0.33983492]
[1761645646521,0.2394,4124.5,4124.3,0.33983492]
[1761645646725,0.3591,4124.4,4124.3,0.33983492]
[1761645648228,0.3591,4124.4,4124.3,0.56993492]
[1761645649025,0.3591,4124.4,4124.3,0.00253492]
[1761645649228,1.00022853,4124.4,4124.3,0.00253492]
[1761645650332,0.3591,4123.9,4123.8,0.1]
[1761645650722,0.92742853,4123.9,4123.8,0.1]
[1761645650915,0.92742853,4123.9,4123.8,0.4373]
[1761645651325,0.92742853,4123.9,4123.8,0.43987342]
[1761645654328,41.72742853,4123.9,4123.8,0.43987342]
[1761645656134,41.72742853,4123.9,4123.8,1.10903834]
[1761645656325,41.48802853,4123.9,4123.8,1.33613834]
[1761645656528,41.36832853,4123.9,4123.8,1.33613834]
[1761645658133,40.9197,4123.9,4123.8,1.10903834]
[1761645658736,40.8,4123.9,4123.8,1.10903834]
[1761645659734,40.8,4123.9,4123.8,0.67250834]
[1761645660840,40.8,4123.9,4123.8,1.10903834]
[1761645662140,40.8,4123.9,4123.8,1.33613834]
[1761645663340,0.3591,4124.1,4124.0,0.3373]
[1761645663736,0.1197,4124.7,4124.6,0.45973492]
[1761645663937,0.2394,4124.7,4124.6,0.45973492]
[1761645664136,0.8156413,4124.7,4124.6,0.79703492]
[1761645664338,41.7353413,4124.7,4124.6,0.33983492]
[1761645664840,41.7353413,4124.7,4124.6,0.3373]
[1761645665744,41.7353413,4124.7,4124.6,0.33983492]
[1761645666045,41.6156413,4124.7,4124.6,0.56743492]
[1761645666842,41.7354413,4124.7,4124.6,0.3232]
[1761645667042,41.7354413,4124.7,4124.6,0.32573492]
[1761645667246,41.7354413,4124.7,4124.6,0.3232]
[1761645668745,41.7354413,4124.7,4124.6,0.32573492]
[1761645668945,0.5762413,4124.7,4124.6,1.20457492]
[1761645669135,0.1202,4125.5,4125.4,0.7801]
[1761645669335,0.2404,4125.5,4125.4,0.7801]
[1761645669538,41.0404,4125.5,4125.4,0.7801]
[1761645669742,0.3606,4125.2,4125.1,0.3377]
[1761645670146,0.4334,4125.2,4125.1,0.3377]
[1761645670941,0.2404,4125.2,4125.1,1.00319]
[1761645672148,0.2404,4125.2,4125.1,0.5668]
[1761645672442,0.2404,4125.2,4125.1,1.00319]
[1761645673349,0.2404,4125.2,4125.1,0.5668]
[1761645673752,0.2404,4125.2,4125.1,1.00319]
[1761645673955,0.2404,4125.2,4125.1,0.5668]
[1761645674338,0.3606,4125.2,4125.1,0.5668]
[1761645674647,0.3606,4125.2,4125.1,0.3377]
[1761645675448,0.3606,4125.1,4125.0,0.7741]
[1761645675646,0.4334,4125.1,4125.0,0.7741]
[1761645676151,0.4334,4125.1,4125.0,0.3377]
[1761645677750,0.3606,4124.9,4124.8,0.3377]
[1761645678149,0.4334,4124.9,4124.5,0.1357]
[1761645678348,0.2404,4124.7,4124.6,1.00324]
[1761645678750,0.2404,4124.7,4124.6,1.21654]
[1761645686156,0.1202,4124.7,4124.6,1.21654]
[1761645686354,0.2404,4125.3,4125.2,0.5668]
[1761645686755,0.79773198,4125.3,4125.2,0.5668]
[1761645687354,0.91793198,4125.3,4125.2,0.3377]
[1761645687554,0.99073198,4125.3,4125.2,0.3377]
[1761645692465,0.91793198,4125.3,4125.2,0.3377]
[1761645694065,0.99073198,4125.3,4125.2,0.3377]
[1761645694262,0.1202,4124.7,4124.6,0.335]
[1761645694565,0.2404,4124.2,4124.1,0.98829]
[1761645694863,0.2404,4124.2,4124.1,1.21779]
[1761645695276,41.0404,4124.2,4124.1,1.21779]
[1761645695870,41.0404,4124.2,4124.1,0.7813]
[1761645696080,41.1606,4124.2,4124.1,0.5518]
[1761645696676,41.0404,4124.2,4124.1,0.5518]
[1761645698680,41.0404,4124.2,4124.1,0.9883]
[1761645699182,41.0404,4124.2,4124.1,1.2178]
[1761645701072,40.9202,4124.2,4124.1,1.2178]
[1761645701272,0.1202,4125.1,4124.7,0.43643]
[1761645701477,0.2404,4125.1,4125.0,0.909]
[1761645701680,0.9185916,4125.1,4125.0,0.6795]
[1761645701879,41.7185916,4125.1,4125.0,0.6795]
[1761645702082,41.7185916,4125.1,4125.0,0.4627]
[1761645702284,41.7185916,4125.1,4125.0,0.335]
[1761645702483,41.7185916,4125.1,4125.0,0.4627]
[1761645702782,41.7185916,4125.1,4125.0,0.6795]
[1761645706486,41.5983916,4125.1,4125.0,0.909]
[1761645708187,41.7185916,4125.1,4125.0,0.6795]
[1761645708388,41.7185916,4125.1,4125.0,0.335]
[1761645708587,41.7913916,4125.1,4125.0,0.335]
[1761645708787,0.2404,4124.7,4124.6,0.5518]
[1761645709383,0.3606,4124.7,4124.6,0.335]
[1761645709585,0.92461065,4124.7,4124.6,0.335]
[1761645711782,0.2404,4124.2,4124.1,0.5518]
[1761645712085,0.92470588,4124.2,4124.1,0.5518]
[1761645712289,0.92470588,4124.2,4124.1,0.9883]
[1761645713292,41.72470588,4124.2,4124.1,0.9883]
[1761645713794,41.60450588,4124.2,4124.1,0.9883]
[1761645714388,41.60450588,4124.2,4124.1,0.7813]
[1761645714693,41.0404,4124.2,4124.1,0.7813]
[1761645715593,41.0404,4124.2,4124.1,1.2178]
[1761645719598,41.0404,4124.2,4124.1,0.7813]
[1761645720296,41.0404,4124.2,4124.1,1.2178]
[1761645721499,41.0404,4124.2,4124.1,0.7813]
[1761645722201,41.1606,4124.2,4124.1,0.7813]
[1761645722400,41.1606,4124.2,4124.1,1.2178]
[1761645722594,41.1606,4124.2,4124.1,0.335]